bitfinex/quotes_SOLUSD_20251119
["timestamp","ask_amount","ask_price","bid_price","bid_amount"]
[1763511607032,5.23825977,139.76,139.69,0.66]
[1763511607423,5.01,139.77,139.69,0.66]
[1763511607624,5.23823091,139.76,139.69,0.66]
[1763511607952,5.01,139.77,139.69,0.66]
[1763511608157,4.32,139.77,139.69,18.78096]
[1763511608658,4.32,139.77,139.7,0.66]
[1763511608659,5.01,139.77,139.7,0.66]
[1763511608826,5.92751258,139.76,139.69,18.12096]
[1763511609030,5.92751258,139.76,139.69,18.78096]
[1763511609230,5.92751258,139.76,139.69,0.66]
[1763511610156,5.01,139.8,139.69,18.78096]
[1763511610357,5.01,139.8,139.73,18.12096]
[1763511610358,4.32,139.8,139.73,18.12096]
[1763511610658,0.69,139.81,139.73,18.12096]
[1763511610862,5.23843917,139.83,139.74,0.66]
[1763511611157,5.23843917,139.82,139.74,0.66]
[1763511611360,0.69,139.83,139.74,0.66]
[1763511611576,5.23572079,139.82,139.73,18.12096]
[1763511611733,15.02454848,139.81,139.71,0.66]
[1763511612061,5.92572079,139.8,139.71,0.66]
[1763511612235,9.55572079,139.79,139.71,0.66]
[1763511612433,4.32,139.79,139.71,0.66]
[1763511613347,0.66,139.8,139.71,0.66]
[1763511613746,5.89259458,139.8,139.71,0.66]
[1763511614272,0.66,139.8,139.71,0.66]
[1763511615262,5.89046888,139.8,139.71,0.66]
[1763511615451,5.23046888,139.79,139.71,0.66]
[1763511615653,5.2299456,139.78,139.71,0.66]
[1763511615857,0.66,139.78,139.71,0.66]
[1763511616387,4.32,139.81,139.71,0.66]
[1763511616546,0.66,139.82,139.75,18.12096]
[1763511616747,5.23203981,139.83,139.75,18.12096]
[1763511616978,0.66,139.85,139.76,0.67]
[1763511617346,5.89293507,139.85,139.76,0.67]
[1763511618055,4.70935283,139.87,139.76,0.67]
[1763511618256,4.98,139.88,139.77,4.32]
[1763511618458,5.88897901,139.87,139.78,0.67]
[1763511618651,0.66,139.87,139.79,27.90978769]
[1763511618856,5.88961135,139.89,139.79,27.90978769]
[1763511619055,5.22961135,139.89,139.82,18.12096]
[1763511619351,0.86,139.91,139.83,0.67]
[1763511619548,15.01494091,139.9,139.79,0.67]
[1763511619771,15.01494091,139.9,139.72,18.12096]
[1763511619772,9.78882769,139.88,139.8,0.67]
[1763511620068,5.22611322,139.87,139.8,0.67]
[1763511620257,0.66,139.87,139.8,0.67]
[1763511621451,18.12096,139.89,139.8,0.67]
[1763511621652,0.71,139.88,139.8,0.67]
[1763511621852,9.78882769,139.87,139.77,0.69]
[1763511622060,9.78882769,139.87,139.77,4.32]
[1763511622369,0.71,139.86,139.78,0.69]
[1763511623951,5.03,139.88,139.78,0.69]
[1763511624287,0.71,139.87,139.78,0.69]
[1763511625462,0.71,139.87,139.78,5.01]
[1763511625664,0.71,139.87,139.78,0.69]
[1763511625872,0.71,139.87,139.79,0.69]
[1763511626777,4.32,139.88,139.79,5.01]
[1763511626947,4.32,139.88,139.82,18.12096]
[1763511627152,0.71,139.89,139.82,18.12096]
[1763511627348,0.71,139.89,139.83,0.69]
[1763511627574,6.12203883,139.91,139.83,0.69]
[1763511627770,0.91,139.91,139.83,0.69]
[1763511629064,0.71,139.9,139.81,0.69]
[1763511629269,0.71,139.9,139.81,5.01]
[1763511629683,0.71,139.9,139.82,0.69]
[1763511635092,0.2,139.91,139.82,0.69]
[1763511635467,0.91,139.91,139.82,0.69]
[1763511635894,0.2,139.91,139.82,0.69]
[1763511636278,0.2,139.91,139.82,1.40520526]
[1763511636476,0.2,139.91,139.83,0.69]
[1763511636694,0.2,139.91,139.86,18.12096]
[1763511637069,0.2,139.91,139.87,0.69]
[1763511640191,0.2,139.91,139.87,18.81096]
[1763511640603,0.2,139.91,139.88,1.40489848]
[1763511640902,0.2,139.94,139.92,18.12096]
[1763511641278,0.2,139.94,139.93,0.69]
[1763511641904,0.2,139.94,139.9,0.69]
[1763511642915,0.2,139.94,139.91,18.12096]
[1763511643405,0.2,139.94,139.92,0.69]
[1763511646827,0.2,139.94,139.9,18.81096]
[1763511647012,0.2,139.94,139.9,22.42096]
[1763511647180,0.2,139.94,139.91,0.69]
[1763511647474,0.2,139.94,139.9,23.11096]
[1763511648081,0.2,139.94,139.9,18.12096]
[1763511648281,0.2,139.94,139.9,18.81096]
[1763511648481,0.2,139.94,139.91,0.69]
[1763511650200,0.89,139.94,139.9,18.12096]
[1763511650413,0.2,139.94,139.9,22.42096]
[1763511650580,0.2,139.94,139.9,23.11096]
[1763511650781,0.2,139.94,139.91,0.69]
[1763511652898,0.2,139.94,139.9,22.42096]
[1763511653105,0.2,139.94,139.91,0.69]
[1763511653887,0.2,139.94,139.93,18.12096]
[1763511654325,0.2,139.98,139.93,19.52560303]
[1763511654489,0.2,139.98,139.94,0.69]
[1763511654691,0.2,139.98,139.95,4.3]
[1763511655185,0.89,139.98,139.95,4.3]
[1763511655386,0.2,139.98,139.95,4.3]
[1763511655590,0.2,139.98,139.95,4.99]
[1763511655792,0.2,139.98,139.93,18.12096]
[1763511655793,0.2,139.98,139.93,18.81096]
[1763511655990,0.2,139.98,139.94,4.99]
[1763511656394,0.2,139.98,139.94,4.3]
[1763511656711,0.2,139.98,139.94,4.99]
[1763511656906,0.2,139.98,139.94,4.3]
[1763511657113,0.2,139.98,139.94,4.99]
[1763511657488,0.2,139.98,139.94,4.3]
[1763511657689,0.2,139.98,139.95,0.69]
[1763511658799,0.2,139.98,139.95,18.81096]
[1763511659227,0.2,139.98,139.96,0.69]
[1763511660894,0.2,139.98,139.97,4.3]
[1763511662095,0.89,139.98,139.86,22.01645298]
[1763511662408,18.12096,139.95,139.88,0.69]
[1763511662922,0.69,139.94,139.88,0.69]
[1763511664124,5.89456795,139.94,139.86,4.99]
[1763511664309,5.89456795,139.94,139.87,18.81096]
[1763511664509,0.69,139.93,139.87,18.81096]
[1763511665013,0.69,139.93,139.88,0.69]
[1763511665918,0.69,139.96,139.89,4.3]
[1763511666405,0.69,139.96,139.89,4.99]
[1763511666613,0.69,139.96,139.9,0.69]
[1763511667421,0.69,139.96,139.89,4.3]
[1763511667617,5.89856976,139.96,139.89,4.3]
[1763511667923,23.32952976,139.95,139.89,4.3]
[1763511668102,0.69,139.94,139.89,4.99]
[1763511668521,0.69,139.94,139.9,0.69]
[1763511669198,10.67882769,139.98,139.9,0.69]
[1763511669530,0.89,139.98,139.9,0.69]
[1763511669701,0.2,139.98,139.9,0.69]
[1763511670911,0.2,140.01,139.95,9.78882769]
[1763511671114,0.2,140.01,139.98,18.12096]
[1763511671439,0.2,140.01,139.98,22.42096]
[1763511671925,0.2,140.01,139.98,23.11096]
[1763511672139,0.2,140.01,139.99,0.69]
[1763511672610,0.2,140.02,139.99,0.69]
[1763511673028,0.2,140.03,140.02,18.12096]
[1763511673215,0.2,140.08,140.03,18.12096]
[1763511673423,0.2,140.08,140.03,18.80096]
[1763511673713,0.2,140.08,140.04,0.68]
[1763511674746,0.68,140.07,140.03,18.12096]
[1763511675255,0.68,140.07,139.98,0.68]
[1763511675426,0.68,140.07,139.96,0.68]
[1763511675731,0.68,140.07,139.98,18.12096]
[1763511675938,0.68,140.07,139.98,18.80096]
[1763511676639,5.89637114,140.07,139.98,18.80096]
[1763511677012,0.68,140.06,139.98,18.80096]
[1763511678140,0.68,140.06,139.99,0.68]
[1763511679232,0.88,140.08,139.99,0.68]
[1763511679442,0.2,140.08,140.01,18.12096]
[1763511679649,0.2,140.08,140.02,4.3]
[1763511679851,0.2,140.08,140.02,4.98]
[1763511680351,0.2,140.08,140.02,4.3]
[1763511680521,0.2,140.08,140.03,0.68]
[1763511680926,0.88,140.08,140.03,0.68]
[1763511681127,0.88,140.08,140.02,4.3]
[1763511681329,0.68,140.07,140.02,4.3]
[1763511682035,0.68,140.07,139.97,9.78882769]
[1763511682036,0.68,140.07,139.98,0.71]
[1763511682227,18.12096,140.04,139.94,0.71]
[1763511682426,9.78882769,140.03,139.94,0.71]
[1763511682653,10.47882769,140.03,139.94,0.71]
[1763511682829,0.69,140.02,139.94,0.71]
[1763511683237,0.69,140.02,139.95,18.12096]
[1763511683751,0.69,140.02,139.95,0.71]
[1763511686159,0.69,140.03,139.95,18.83096]
[1763511687170,0.69,140.03,139.96,0.71]
[1763511687455,0.69,140.03,139.96,5.01]
[1763511687851,0.69,140.03,139.97,0.71]
[1763511690652,0.69,140.03,139.95,0.71]
[1763511691645,9.78882769,140.02,139.9,21.49690082]
[1763511691967,4.99,140.01,139.92,0.71]
[1763511692466,0.69,140.0,139.92,0.71]
[1763511692676,4.99,140.0,139.92,0.71]
[1763511693041,0.69,139.99,139.92,0.71]
[1763511693468,0.69,139.99,139.91,18.12096]
[1763511693649,18.81096,139.99,139.9,26.48881122]
[1763511693853,0.69,139.98,139.91,0.71]
[1763511694460,4.3,139.99,139.93,18.12096]
[1763511694873,4.3,139.99,139.94,0.71]
[1763511695259,0.69,139.98,139.93,18.12096]
[1763511695742,0.69,139.98,139.94,0.71]
[1763511696464,0.69,139.98,139.92,0.71]
[1763511697271,3.99,139.99,139.92,0.71]
[1763511697570,18.12096,140.0,139.92,0.71]
[1763511697760,22.42096,140.0,139.92,0.71]
[1763511697954,18.12096,140.0,139.92,0.71]
[1763511698277,4.3,140.02,139.92,0.71]
[1763511699270,0.43,140.01,139.92,0.71]
[1763511699472,0.43,140.01,139.92,5.01]
[1763511699962,0.43,140.01,139.93,0.71]
[1763511700846,10.21882769,140.03,139.94,18.12096]
[1763511701048,0.43,140.02,139.95,4.3]
[1763511701271,4.3,140.04,139.96,0.71]
[1763511701774,4.73,140.04,139.96,0.71]
[1763511702069,4.73,140.06,139.96,0.71]
[1763511702246,18.12096,140.05,139.96,0.71]
[1763511703259,0.43,140.04,139.96,0.71]
[1763511704074,0.43,140.04,139.97,4.28]
[1763511704462,0.43,140.04,139.98,0.72]
[1763511705974,0.43,140.04,139.97,4.28]
[1763511706545,0.43,140.04,139.96,18.84096]
[1763511706751,9.78882769,140.03,139.94,0.72]
[1763511706977,4.28,140.02,139.94,0.72]
[1763511707183,4.71,140.02,139.94,0.72]
[1763511707396,0.43,140.01,139.94,0.72]
[1763511707568,0.43,140.01,139.96,18.12096]
[1763511707767,0.43,140.01,139.94,0.72]
[1763511708076,0.43,140.01,139.96,18.12096]
[1763511708570,9.78882769,140.0,139.93,4.28]
[1763511708968,0.43,139.99,139.95,18.12096]
[1763511709454,0.43,139.99,139.93,18.12096]
[1763511710459,0.43,139.99,139.93,18.84096]
[1763511711278,14.06882769,139.98,139.91,0.72]
[1763511711493,14.06882769,139.98,139.89,22.40096]
[1763511711790,14.49882769,139.98,139.9,0.72]
[1763511712883,4.28,139.98,139.9,22.08865989]
[1763511713097,4.71,139.98,139.9,0.72]
[1763511713267,18.55096,139.97,139.89,22.40096]
[1763511713472,18.55096,139.97,139.89,5.0]
[1763511713473,9.78882769,139.96,139.89,5.0]
[1763511713673,10.21882769,139.96,139.89,5.0]
[1763511713983,0.43,139.95,139.89,5.0]
[1763511718169,0.43,139.95,139.87,22.48637849]
[1763511718378,9.78882769,139.93,139.87,0.72]
[1763511718766,10.21882769,139.93,139.87,0.72]
[1763511720064,9.78882769,139.93,139.85,18.12096]
[1763511720260,0.43,139.92,139.83,22.37656467]
[1763511720472,9.78882769,139.91,139.8,4.28]
[1763511720681,9.78882769,139.89,139.81,0.72]
[1763511721068,0.43,139.88,139.81,0.72]
[1763511722594,0.43,139.88,139.8,0.72]
[1763511723576,9.78882769,139.87,139.78,0.1]
[1763511723777,4.28,139.86,139.78,0.82]
[1763511723977,18.12096,139.84,139.78,0.1]
[1763511724493,0.43,139.83,139.78,0.1]
[1763511724883,18.12096,139.84,139.78,0.82]
[1763511725076,0.43,139.88,139.78,0.82]
[1763511725272,4.28,139.89,139.81,18.12096]
[1763511725478,9.78882769,139.88,139.79,18.12096]
[1763511725673,10.21882769,139.88,139.8,18.84096]
[1763511726202,0.43,139.87,139.81,0.72]
[1763511726500,18.12096,139.85,139.79,0.72]
[1763511726671,22.42096,139.85,139.79,0.72]
[1763511726867,0.43,139.84,139.78,0.1]
[1763511727302,9.78882769,139.83,139.78,0.1]
[1763511727684,0.43,139.82,139.78,0.1]
[1763511728389,4.3,139.81,139.78,0.1]
[1763511728900,4.3,139.86,139.79,18.84096]
[1763511729441,18.12096,139.85,139.78,0.1]
[1763511729701,18.12096,139.81,139.78,0.1]
[1763511729897,22.42096,139.81,139.78,0.1]
[1763511730079,22.42096,139.81,139.75,0.82]
[1763511730080,18.12096,139.77,139.75,0.1]
[1763511731302,0.33,139.81,139.75,0.82]
[1763511731596,5.17958507,139.86,139.75,0.82]
[1763511731799,18.45096,139.83,139.75,0.82]
[1763511731976,0.33,139.82,139.75,0.82]
[1763511732179,4.3,139.81,139.75,0.82]
[1763511732902,22.42096,139.81,139.75,0.82]
[1763511733604,4.3,139.81,139.75,0.82]
[1763511734688,18.12096,139.8,139.75,0.82]
[1763511735301,18.12096,139.81,139.75,0.82]
[1763511735501,22.42096,139.81,139.75,0.82]
[1763511737511,0.33,139.85,139.75,0.82]
[1763511737696,4.3,139.84,139.75,0.82]
[1763511737897,18.12096,139.82,139.75,0.82]
[1763511738204,27.38153494,139.91,139.75,0.82]
[1763511738205,4.3,139.87,139.79,18.12096]
[1763511738714,22.42096,139.87,139.8,0.69]
[1763511739299,18.12096,139.87,139.8,0.69]
[1763511739501,0.33,139.91,139.81,9.78882769]
[1763511739698,4.3,139.9,139.81,9.78882769]
[1763511739915,4.3,139.9,139.82,0.69]
[1763511740296,4.3,139.9,139.82,18.81096]
[1763511740598,0.33,139.95,139.84,18.12096]
[1763511740822,4.63,139.95,139.84,18.12096]
[1763511741013,18.12096,139.94,139.85,0.69]
[1763511741629,18.12096,139.93,139.85,0.69]
[1763511742838,4.63,139.95,139.85,0.69]
[1763511743444,4.63,139.95,139.86,4.3]
[1763511743834,4.63,139.95,139.87,0.65]
[1763511744138,18.12096,139.93,139.85,0.65]
[1763511744640,0.33,139.92,139.85,0.65]
[1763511744824,4.3,139.91,139.85,0.65]
[1763511745439,4.3,139.91,139.79,18.12096]
[1763511745440,18.45096,139.9,139.79,18.12096]
[1763511745630,18.45096,139.9,139.83,0.65]
[1763511746217,0.33,139.94,139.83,0.65]
[1763511746421,4.63,139.94,139.84,9.78882769]
[1763511746722,4.3,139.94,139.85,4.3]
[1763511746944,18.12096,139.93,139.85,4.95]
[1763511747158,18.12096,139.93,139.86,0.65]
[1763511747452,4.3,139.97,139.87,18.12096]
[1763511747823,4.3,139.97,139.88,0.65]
[1763511748422,4.3,139.97,139.94,9.12618973]
[1763511748846,4.3,139.97,139.95,9.12618973]
[1763511749744,14.08882769,140.0,139.96,9.12618973]
[1763511749923,4.3,140.0,139.97,9.12618973]
[1763511750126,4.3,140.0,139.98,9.12618973]
[1763511750522,22.75096,140.0,139.97,9.12618973]
[1763511750748,18.12096,139.99,139.97,9.12618973]
[1763511751326,18.12096,139.99,139.95,0.65]
[1763511751524,18.12096,139.99,139.97,9.12618973]
[1763511751963,4.3,140.0,139.98,9.12618973]
[1763511752148,4.3,140.0,139.99,9.12618973]
[1763511752450,28.23978769,140.03,139.99,9.12618973]
[1763511752652,0.33,140.06,140.01,9.12618973]
[1763511752842,0.33,140.07,140.03,9.12618973]
[1763511753149,0.33,140.07,139.96,9.78882769]
[1763511753150,4.3,140.06,140.04,9.12618973]
[1763511753933,4.3,140.06,140.03,9.12618973]
[1763511754134,10.11882769,140.05,139.99,0.65]
[1763511754537,10.11882769,140.05,140.01,9.12618973]
[1763511755150,0.33,140.04,140.01,9.12618973]
[1763511755351,0.33,140.04,140.0,9.12618973]
[1763511755548,10.11882769,140.05,140.0,9.12618973]
[1763511755729,10.11882769,140.05,140.0,9.77618973]
[1763511756143,0.33,140.04,140.0,9.12618973]
[1763511757052,9.78882769,140.05,140.0,9.12618973]
[1763511757254,0.33,140.04,139.98,0.65]
[1763511757551,9.78882769,140.05,140.01,9.12618973]
[1763511757763,22.75096,140.06,140.01,9.12618973]
[1763511758067,22.75096,140.06,140.01,9.77618973]
[1763511758561,22.75096,140.06,140.02,9.12618973]
[1763511758733,18.12096,140.06,140.02,9.12618973]
[1763511758934,4.3,140.06,140.04,9.12618973]
[1763511759639,0.2,140.08,140.05,9.12618973]
[1763511759640,9.98882769,140.08,140.05,9.12618973]
[1763511759848,10.31882769,140.08,140.01,0.65]
[1763511760144,4.3,140.07,140.04,9.12618973]
[1763511760658,4.3,140.07,140.05,9.12618973]
[1763511761168,4.3,140.07,140.04,0.65]
[1763511761378,4.3,140.07,140.06,9.12618973]
[1763511761667,0.2,140.08,140.06,9.12618973]
[1763511761849,0.2,140.08,140.07,9.12618973]
[1763511762237,0.2,140.08,140.06,9.12618973]
[1763511762567,0.2,140.08,140.06,9.80618973]
[1763511762772,0.2,140.08,140.05,9.12618973]
[1763511763449,0.2,140.08,140.05,9.80618973]
[1763511764045,0.2,140.08,140.06,9.12618973]
[1763511766168,0.2,140.08,140.07,9.12618973]
[1763511766475,0.2,140.08,140.07,9.80618973]
[1763511767253,0.2,140.12,140.07,9.80618973]
[1763511767450,0.2,140.12,140.11,9.12618973]
[1763511767854,0.2,140.12,140.11,9.80618973]
[1763511768768,0.2,140.12,140.11,27.92714973]
[1763511770049,0.2,140.12,140.11,4.96]
[1763511770264,0.2,140.12,140.11,14.08618973]
[1763511772753,0.2,140.12,140.11,9.80618973]
[1763511773062,0.2,140.12,140.11,14.08618973]
[1763511773460,0.2,140.12,140.11,23.87501742]
[1763511773671,0.2,140.13,140.12,9.12618973]
[1763511773858,0.2,140.13,140.12,9.80618973]
[1763511774677,22.60096,140.21,140.12,9.80618973]
[1763511774883,22.60096,140.21,140.19,9.12618973]
[1763511775183,23.13096,140.21,140.15,4.28]
[1763511775388,18.13096,140.21,140.17,9.12618973]
[1763511775761,0.53,140.2,140.15,4.28]
[1763511775961,0.53,140.2,140.16,9.12618973]
[1763511776292,0.53,140.2,140.15,4.28]
[1763511776293,0.53,140.2,140.17,9.12618973]
[1763511777066,0.53,140.2,140.18,9.12618973]
[1763511777666,17.60096,140.21,140.18,9.12618973]
[1763511777863,18.13096,140.21,140.18,9.12618973]
[1763511778483,0.53,140.2,140.15,4.96]
[1763511778786,0.53,140.2,140.17,5.44227658]
[1763511779301,18.65096,140.22,140.18,5.44227658]
[1763511779688,18.12096,140.22,140.18,0.68]
[1763511779881,18.12096,140.22,140.19,5.44227658]
[1763511780104,0.53,140.21,140.15,4.28]
[1763511780290,0.53,140.21,140.17,5.44227658]
[1763511780690,0.53,140.21,140.18,5.44227658]
[1763511781021,5.44227658,140.19,140.11,0.68]
[1763511781229,59.16206427,140.2,140.09,5.44227658]
[1763511781391,23.56323658,140.14,140.08,5.44227658]
[1763511781583,22.40096,140.15,140.11,5.44227658]
[1763511781998,22.93096,140.15,140.09,0.68]
[1763511782187,0.53,140.14,140.07,0.68]
[1763511782411,27.84323658,140.15,140.11,5.44227658]
[1763511782412,22.93096,140.15,140.11,5.44227658]
[1763511782713,22.93096,140.15,140.07,0.68]
[1763511782714,0.53,140.14,140.1,5.44227658]
[1763511782915,22.40096,140.15,140.11,5.44227658]
[1763511783406,22.93096,140.15,140.11,5.44227658]
[1763511783613,0.53,140.14,140.11,5.44227658]
[1763511783911,0.53,140.14,140.1,5.44227658]
[1763511784108,0.53,140.14,140.09,5.44227658]
[1763511784404,27.84323658,140.15,140.1,5.44227658]
[1763511784584,28.37323658,140.15,140.1,5.44227658]
[1763511784786,0.53,140.18,140.14,5.44227658]
[1763511785415,0.53,140.18,140.15,5.44227658]
[1763511785911,0.53,140.21,140.17,5.44227658]
[1763511786211,24.09323658,140.21,140.16,5.44227658]
[1763511786399,4.652843,140.2,140.16,5.44227658]
[1763511786714,5.182843,140.2,140.16,5.44227658]
[1763511786887,0.53,140.19,140.16,5.44227658]
[1763511787288,0.53,140.19,140.12,4.28]
[1763511787508,0.53,140.19,140.15,5.44227658]
[1763511787693,18.12096,140.21,140.16,5.44227658]
[1763511787898,18.65096,140.21,140.17,5.44227658]
[1763511788114,4.28,140.22,140.18,5.44227658]
[1763511788786,4.81,140.22,140.18,5.44227658]
[1763511788989,0.53,140.21,140.18,5.44227658]
[1763511789527,0.53,140.21,140.17,5.44227658]
[1763511790892,0.53,140.21,140.18,5.44227658]
[1763511791204,5.19974665,140.21,140.17,5.44227658]
[1763511791806,4.28,140.22,140.19,5.44227658]
[1763511792194,8.94966763,140.22,140.19,5.44227658]
[1763511792427,0.2,140.23,140.21,5.44227658]
[1763511792721,0.2,140.23,140.22,5.44227658]
[1763511793317,0.2,140.23,140.22,6.16227658]
[1763511794909,0.2,140.23,140.19,18.84096]
[1763511795098,0.2,140.23,140.21,5.44227658]
[1763511795293,0.2,140.23,140.2,0.72]
[1763511795518,0.2,140.23,140.21,5.44227658]
[1763511796311,0.2,140.23,140.21,6.16227658]
[1763511796503,0.2,140.23,140.22,5.44227658]
[1763511797121,0.2,140.23,140.21,6.16227658]
[1763511797699,0.2,140.23,140.21,0.72]
[1763511798018,0.2,140.23,140.21,6.16227658]
[1763511799029,0.2,140.23,140.2,5.44227658]
[1763511800024,0.73,140.23,140.19,5.44227658]
[1763511800544,0.73,140.23,140.17,5.0]
[1763511800545,0.53,140.22,140.18,5.44227658]
[1763511800714,5.44227658,140.21,140.15,4.28]
[1763511800913,5.44227658,140.21,140.16,5.44227658]
[1763511801120,5.97227658,140.21,140.16,5.44227658]
[1763511801316,5.97227658,140.21,140.15,5.0]
[1763511801317,0.53,140.2,140.15,5.0]
[1763511801515,0.53,140.2,140.16,5.44227658]
[1763511801726,5.44227658,140.21,140.16,6.13227658]
[1763511802036,5.97227658,140.21,140.16,0.69]
[1763511802331,5.97227658,140.21,140.16,6.13227658]
[1763511802928,0.53,140.2,140.14,0.69]
[1763511803117,5.97227658,140.2,140.15,5.44227658]
[1763511803316,5.44227658,140.19,140.14,10.41227658]
[1763511803815,5.44227658,140.19,140.15,0.69]
[1763511804136,5.97227658,140.2,140.15,0.69]
[1763511804338,10.65667929,140.2,140.15,0.69]
[1763511804515,5.97227658,140.2,140.15,0.69]
[1763511804715,10.12667929,140.2,140.15,0.69]
[1763511804910,5.44227658,140.2,140.15,0.69]
[1763511805118,10.65667929,140.2,140.15,0.69]
[1763511805331,0.53,140.19,140.14,9.72227658]
[1763511805844,0.53,140.19,140.14,10.41227658]
[1763511806026,10.12667929,140.2,140.15,0.69]
[1763511806228,5.97227658,140.2,140.15,0.69]
[1763511806531,0.53,140.2,140.16,5.44227658]
[1763511806741,22.40096,140.22,140.18,5.44227658]
[1763511806936,4.28,140.22,140.17,5.44227658]
[1763511807140,4.81,140.22,140.17,5.44227658]
[1763511807321,4.81,140.22,140.17,6.13227658]
[1763511808042,10.25227658,140.22,140.17,6.13227658]
[1763511809040,9.72227658,140.22,140.17,6.13227658]
[1763511809229,0.53,140.21,140.17,0.69]
[1763511809430,10.25227658,140.22,140.17,0.69]
[1763511809744,4.81,140.22,140.17,6.13227658]
[1763511809940,0.53,140.21,140.17,6.13227658]
[1763511810123,5.44227658,140.2,140.15,6.13227658]
[1763511810321,0.53,140.2,140.15,6.13227658]
[1763511810634,5.97227658,140.2,140.15,0.69]
[1763511811427,5.97227658,140.19,140.14,4.28]
[1763511811740,5.97227658,140.19,140.14,9.72227658]
[1763511811932,5.97227658,140.19,140.15,0.69]
[1763511812335,0.53,140.18,140.13,5.44227658]
[1763511812532,5.44227658,140.17,140.11,6.13227658]
[1763511812928,5.44227658,140.17,140.12,0.69]
[1763511813420,5.97227658,140.16,140.1,0.69]
[1763511813620,5.97227658,140.16,140.1,6.13227658]
[1763511814425,0.53,140.15,140.1,6.13227658]
[1763511814622,11.2162584,140.15,140.09,5.44227658]
[1763511814926,5.97227658,140.15,140.1,6.13227658]
[1763511815234,0.53,140.15,140.1,6.13227658]
[1763511815630,0.53,140.15,140.11,0.69]
[1763511815869,0.53,140.15,140.1,6.13227658]
[1763511816772,4.28,140.16,140.11,0.69]
[1763511816983,5.44227658,140.16,140.11,0.69]
[1763511817164,5.97227658,140.16,140.11,0.69]
[1763511817366,0.53,140.15,140.11,0.69]
[1763511817757,5.44227658,140.14,140.09,5.44227658]
[1763511817969,18.12096,140.12,140.09,5.44227658]
[1763511818170,5.44227658,140.1,140.05,0.69]
[1763511818453,23.56323658,140.1,140.05,0.69]
[1763511818648,5.44227658,140.07,140.03,0.69]
[1763511819184,5.44227658,140.07,140.01,6.13227658]
[1763511819185,0.53,140.07,140.01,6.13227658]
[1763511819383,5.97227658,140.07,140.01,6.13227658]
[1763511819677,22.40096,140.1,140.02,0.69]
[1763511820182,28.37323658,140.1,140.04,5.44227658]
[1763511820346,28.37323658,140.1,140.04,6.13227658]
[1763511820675,4.28,140.1,140.05,6.13227658]
[1763511820970,9.72227658,140.13,140.08,5.44227658]
[1763511821348,10.25227658,140.13,140.08,6.13227658]
[1763511821553,4.81,140.13,140.08,6.13227658]
[1763511821763,10.25227658,140.13,140.08,6.13227658]
[1763511822474,23.56323658,140.14,140.09,6.13227658]
[1763511823061,24.09323658,140.14,140.09,6.13227658]
[1763511823360,8.08447001,140.23,140.12,5.44227658]
[1763511823361,5.44227658,140.18,140.12,5.44227658]
[1763511823668,27.84323658,140.18,140.12,5.44227658]